lending/lending_fUSD_20260204
["ID","MTS","AMOUNT","RATE_DAILY","PERIOD"]
[404520845,1770235823165,-500.0,0.00049899,30]
[404520846,1770235823218,-150.0,0.00049899,30]
[404520847,1770235823271,-200.0,0.00049899,30]
[404520848,1770235823323,-500.0,0.00049899,30]
[404520849,1770235823379,-150.0,0.00049899,30]
[404520850,1770235823435,-500.0,0.00049899,30]
[404520851,1770235823497,-625.34337535,0.00049899,30]
[404520852,1770235823555,-200.0,0.00049899,30]
[404520853,1770235823612,-436.0,0.00049899,30]
[404520854,1770235823667,-436.0,0.00049899,30]
[404520855,1770235823726,-436.0,0.00049899,30]
[404520856,1770235823780,-436.0,0.00049899,30]
[404520857,1770235823837,-436.0,0.00049899,30]
[404520858,1770235823895,-437.88177425,0.00049899,30]
[404520859,1770235823956,-167076.14735189,0.000499,30]
[404520860,1770235824018,-240.0,0.000499,120]
[404520861,1770235824090,-160.0,0.000499,120]
[404520862,1770235824149,-150.0,0.000499,40]
[404520863,1770235824697,-300.0,0.000499,30]
[404520864,1770235824771,-1103.0,0.000499,30]
[404520865,1770235824822,-2000.0,0.000499,120]
[404520866,1770235824874,-150.0,0.000499,30]
[404520867,1770235824926,-150.0,0.000499,30]
[404520868,1770235824993,-150.00000001,0.000499,30]
[404520869,1770235825048,-150.0,0.000499,30]
[404520870,1770235825101,-150.0,0.000499,30]
[404520871,1770235825154,-150.0,0.000499,30]
[404520872,1770235825207,-150.0,0.000499,30]
[404520873,1770235825265,-150.0,0.000499,30]
[404520874,1770235825324,-150.0,0.000499,30]
[404520875,1770235825380,-150.0,0.000499,30]
[404520876,1770235825438,-150.0,0.000499,30]
[404520877,1770235825505,-167.69638128,0.000499,30]
[404520878,1770235825560,-150.0,0.000499,30]
[404520879,1770235825614,-150.0,0.000499,30]
[404520880,1770235825669,-501.0,0.00049944,31]
[404520881,1770235825729,-457.0,0.00049986,120]
[404520882,1770235825782,-1200.0,0.00049987,60]
[404520883,1770235825836,-5547.37184939,0.0004999,14]
[404520884,1770235825890,-1237.73340161,0.0004999,120]
[404520885,1770235825946,-2926.74797,0.0004999,60]
[404520886,1770235826003,-642.58280157,0.0004999,120]
[404520887,1770235826061,-50000.0,0.0005,69]
[404520888,1770235826117,-600.0,0.0005,14]
[404520889,1770235826173,-150.0,0.0005,25]
[404520890,1770235826225,-500.0,0.0005,10]
[404520891,1770235826280,-500.0,0.0005,15]
[404520892,1770235826336,-500.0,0.0005,20]
[404520893,1770235826392,-500.0,0.0005,25]
[404520894,1770235826449,-150.0,0.0005,40]
[404520895,1770235826517,-500.0,0.0005,120]
[404520896,1770235826575,-173.02932295,0.0005,120]
[404520897,1770235826630,-208.39436858,0.0005,120]
[404520898,1770235826684,-181.15176296,0.0005,120]
[404520899,1770235826736,-241.19194757,0.0005,30]
[404520900,1770235826788,-257.33020988,0.0005,120]
[404520901,1770235826840,-1082.17887852,0.0005,30]
[404520902,1770235826893,-259.21975899,0.0005,120]
[404520903,1770235826945,-169.68120605,0.0005,120]
[404520904,1770235827003,-225.91174705,0.0005,120]
[404520905,1770235827054,-500.0,0.0005,30]
[404520906,1770235827106,-718.84880359,0.0005,120]
[404520907,1770235827156,-477.20597453,0.0005,120]
[404520908,1770235827209,-269.45503409,0.0005,120]
[404520909,1770235827266,-200.0,0.0005,120]
[404520910,1770235827317,-160.63246653,0.0005,120]
[404520911,1770235827369,-150.0,0.0005,120]
[404520912,1770235827424,-200.0,0.0005,120]
[404520913,1770235827478,-300.0,0.0005,120]
[404520914,1770235827533,-250.0,0.0005,120]
[404520915,1770235827586,-1100.0,0.0005,120]
[404520916,1770235827639,-500.0,0.0005,120]
[404520917,1770235827691,-1000.0,0.0005,120]
[404520918,1770235827744,-194.0648762,0.0005,120]
[404520919,1770235827796,-219.11037979,0.0005,30]
[404520920,1770235827849,-498.36,0.0005,120]
[404520921,1770235827902,-1468.55225481,0.0005,120]
[404520922,1770235828020,-878.93120766,0.0005,120]
[404520923,1770235828070,-166.15974148,0.0005,120]
[404520924,1770235828119,-200.0,0.0005,120]
[404520925,1770235828168,-3514.47678522,0.0005,120]
[404520926,1770235828216,-5843.55,0.0005,120]
[404520927,1770235828267,-1781.0,0.0005,120]
[404520928,1770235828317,-470.68860071,0.0005,120]
[404520929,1770235828366,-2460.75023,0.0005,120]
[404520930,1770235828414,-20704.4767229,0.0005,120]
[404520931,1770235828468,-1118.79463273,0.0005,120]
[404520932,1770235828520,-212.80341335,0.0005,120]
[404520933,1770235828571,-720.0,0.0005,30]
[404520934,1770235828622,-50000.0,0.0005,60]
[404520935,1770235828671,-150.0,0.0005,99]
[404520936,1770235828721,-52540.0,0.0005,120]
[404520937,1770235828771,-216.39110209,0.0005,120]
[404520938,1770235828820,-1213.8289293,0.0005,120]
[404520939,1770235828869,-305.11894367,0.0005,120]
[404520940,1770235828919,-160.0,0.0005,10]
[404520941,1770235828968,-160.0,0.0005,10]
[404520942,1770235829020,-160.0,0.0005,30]
[404520943,1770235829075,-160.0,0.0005,30]
[404520944,1770235829127,-160.0,0.0005,120]
[404520945,1770235829179,-160.0,0.0005,120]
[404520946,1770235829230,-153.0,0.000501,120]
[404520947,1770235829282,-2000.0,0.000501,120]
[404520948,1770235829334,-157.19375168,0.0005011,120]
[404520949,1770235829385,-200.0,0.00050126,10]
[404520950,1770235829435,-152.0,0.00050172,36]
[404520951,1770235829488,-500.0,0.00050201,120]
[404520952,1770235829543,-150.0,0.00050218,120]
[404520953,1770235829597,-550.34,0.000503,60]
[404520954,1770235829647,-2000.0,0.000503,120]
[404520955,1770235829700,-151.0,0.000504,120]
[404520956,1770235829754,-150.0,0.0005044,120]
[404520957,1770235829804,-480.95376809,0.00050448,60]
[404520958,1770235829860,-500.0,0.00050448,60]
[404520959,1770235829912,-305.3074605,0.000505,120]
[404520960,1770235829964,-2000.0,0.000505,120]
[404520961,1770235830014,-200.0,0.00050534,60]
[404520962,1770235830063,-200.0,0.00050585,12]
[404520963,1770235830113,-1110.18816995,0.000506,120]
[404520964,1770235830163,-1970.2,0.00050685,120]
[404520965,1770235830218,-2000.0,0.000507,120]
[404520966,1770235830268,-562.26330976,0.000508,120]
[404520967,1770235830317,-208.71848462,0.00050874,30]
[404520968,1770235830365,-152.0,0.00050881,37]
[404520969,1770235830415,-501.0,0.00050884,32]
[404520970,1770235830468,-1914.0,0.000509,120]
[404520971,1770235830518,-193.75308694,0.000509,120]
[404520972,1770235830567,-153.0,0.000509,120]
[404520973,1770235830620,-184.6,0.000509,40]
[404520974,1770235830670,-2000.0,0.000509,120]
[404520975,1770235830720,-821.57257684,0.00051,120]
[404520976,1770235830770,-150.0,0.00051,25]
[404520977,1770235830819,-150.0,0.00051,40]
[404520978,1770235830868,-1000.0,0.00051,120]
[404520979,1770235830917,-823.0,0.00051,120]
[404520980,1770235830966,-500.0,0.00051,120]
[404520981,1770235831015,-500.0,0.00051,120]
[404520982,1770235831068,-1529.53389351,0.00051,120]
[404520983,1770235831119,-151.0,0.00051,120]
[404520984,1770235831168,-535.53,0.00051,30]
[404520985,1770235831219,-413.69198811,0.0005109,120]
[404520986,1770235831267,-905.59451648,0.000511,120]
[404520987,1770235831315,-438.21394123,0.000511,120]
[404520988,1770235831365,-368.45381554,0.000511,120]
[404520989,1770235831416,-341.3301025,0.000511,120]
[404520990,1770235831470,-1165.69914984,0.000511,120]
[404520991,1770235831519,-168.54615982,0.000511,120]
[404520992,1770235831567,-2224.32,0.0005111,30]
[404520993,1770235831614,-1003.54570546,0.000512,120]
[404520994,1770235831663,-345.46223911,0.00051234,120]
[404520995,1770235831712,-200.0,0.00051325,12]
[404520996,1770235831760,-200.0,0.000514,120]
[404520997,1770235831807,-290.8194765,0.000514,120]
[404520998,1770235831856,-203.97835699,0.000514,120]
[404520999,1770235831906,-504.16646926,0.000514,120]
[404521000,1770235831956,-180.17760466,0.000514,120]
[404521002,1770235832014,-1271.36851415,0.000515,120]
[404521006,1770235832066,-5000000.0,0.000515,120]
[404521007,1770235832115,-160.0,0.000515,10]
[404521008,1770235832164,-160.0,0.000515,10]
[404521009,1770235832213,-160.0,0.000515,30]
[404521010,1770235832261,-160.0,0.000515,30]
[404521011,1770235832309,-200.0,0.00051534,60]
[404521012,1770235832357,-500.0,0.00051544,60]
[404521014,1770235832405,-796.18,0.00051571,120]
[404521020,1770235832455,-152.0,0.0005159,38]
[404521036,1770235832622,-500.0,0.00051601,120]
[404521037,1770235832672,-3253.0,0.00051608,120]
[404521038,1770235832721,-2445.0,0.00051608,120]
[404521039,1770235832769,-3482.0,0.00051608,120]
[404521040,1770235832817,-1335.0,0.00051608,120]
[404521041,1770235832866,-568.0,0.00051608,120]
[404521042,1770235832915,-1205.0,0.00051608,120]
[404521043,1770235832966,-917.0,0.00051608,120]
[404521044,1770235833017,-151.0,0.000517,120]
[404521045,1770235833066,-71295.45662,0.00051777,60]
[404521046,1770235833117,-153.0,0.000518,120]
[404521047,1770235833169,-501.0,0.00051823,33]
[404521048,1770235833220,-572.0,0.00051973,120]
[404521049,1770235833270,-1087.0,0.0005198,110]
[404521050,1770235833319,-622.98036141,0.00052,20]
[404521051,1770235833369,-12000.0,0.00052,85]
[404521052,1770235833420,-12000.0,0.00052,80]
[404521053,1770235833478,-11361.0,0.00052,75]
[404521054,1770235833531,-1000.01770833,0.00052,15]
[404521055,1770235833584,-221.89309115,0.00052,20]
[404521056,1770235833635,-200.0,0.00052,40]
[404521057,1770235833686,-474.32677554,0.00052,120]
[404521058,1770235833738,-1313.28356526,0.00052,90]
[404521059,1770235833789,-352.37559613,0.00052,120]
[404521060,1770235833840,-959.30583058,0.00052,120]
[404521061,1770235833891,-264.85323866,0.00052,120]
[404521062,1770235833943,-200.0,0.00052,120]
[404521063,1770235833994,-1000.0,0.00052,120]
[404521064,1770235834044,-220.455271,0.00052,20]
[404521065,1770235834094,-500.0,0.00052,120]
[404521066,1770235834145,-200.0,0.00052,120]
[404521067,1770235834195,-7307.35730058,0.00052,120]
[404521068,1770235834245,-1353.0,0.00052,120]
[404521069,1770235834295,-111000.0,0.00052,35]
[404521070,1770235834347,-1113.0,0.00052,120]
[404521071,1770235834399,-259.22621324,0.00052,120]
[404521072,1770235834449,-1399.0,0.00052,120]
[404521073,1770235834500,-250239.23927988,0.00052,30]
[404521074,1770235834552,-4000.0,0.00052,120]
[404521075,1770235834603,-958.38,0.00052,120]
[404521076,1770235834652,-2000.0,0.00052055,120]
[404521077,1770235834703,-151.0,0.000523,120]
[404521078,1770235834753,-498.94855035,0.00052356,120]
[404521079,1770235834801,-1103.0,0.00052395,30]
[404521080,1770235834849,-223.4546,0.00052395,120]
[404521081,1770235834898,-331.14361251,0.000525,120]
[404521082,1770235834948,-7316.55072133,0.000525,120]
[404521083,1770235834997,-1372.82,0.000525,120]
[404521084,1770235835048,-1372.82,0.000525,120]
[404521085,1770235835097,-200.0,0.00052534,60]
[404521086,1770235835149,-150.0,0.00052542,120]
[404521087,1770235835198,-150.0,0.00052566,120]
[404521088,1770235835246,-153.0,0.000526,120]
[404521089,1770235835295,-5207.98343,0.00052603,30]
[404521090,1770235835343,-500.0,0.0005264,60]
[404521091,1770235835392,-920.0,0.000527,120]
[404521092,1770235835441,-905.59451648,0.000527,120]
[404521093,1770235835492,-438.21394123,0.000527,120]
[404521094,1770235835541,-368.45381554,0.000527,120]
[404521095,1770235835592,-341.3301025,0.000527,120]
[404521096,1770235835644,-1165.69914984,0.000527,120]
[404521097,1770235835695,-168.54615982,0.000527,120]
[404521098,1770235835744,-11113.98027905,0.00052725,120]
[404521099,1770235835794,-501.0,0.00052762,34]
[404521100,1770235835844,-300.87823553,0.000528,120]
[404521101,1770235835895,-1003.54570546,0.000528,120]
[404521102,1770235835947,-150.0,0.00052843,120]
[404521103,1770235835999,-150.0,0.00052856,120]
[404521104,1770235836048,-1268.26006411,0.00052889,120]
[404521105,1770235836098,-290.8194765,0.000529,120]
[404521106,1770235836146,-203.97835699,0.000529,120]
[404521107,1770235836195,-504.16646926,0.000529,120]
[404521108,1770235836242,-180.17760466,0.000529,120]
[404521109,1770235836291,-292.034369,0.00053,120]
[404521110,1770235836340,-346.10313712,0.00053,120]
[404521111,1770235836390,-528.9971198,0.00053,120]
[404521112,1770235836441,-917.19141371,0.00053,90]
[404521113,1770235836708,-1000.0,0.00053,120]
[404521114,1770235836760,-823.0,0.00053,120]
[404521115,1770235836812,-155.0880712,0.00053,120]
[404521116,1770235836865,-161.06285103,0.00053,120]
[404521117,1770235836918,-503.93772534,0.00053,120]
[404521118,1770235836973,-2014.0,0.00053,120]
[404521119,1770235837025,-828.0,0.00053,120]
[404521120,1770235837077,-151.0,0.00053,120]
[404521121,1770235837130,-160.0,0.00053,10]
[404521122,1770235837181,-160.0,0.00053,10]
[404521123,1770235837232,-500.0,0.00053001,120]
[404521124,1770235837281,-200.0,0.00053115,10]
[404521125,1770235837328,-6742.5210459,0.0005323,30]
[404521126,1770235837377,-1225.70644864,0.00053425,120]
[404521127,1770235837430,-2344051.47797291,0.000535,120]
[404521128,1770235837831,-126301.5056867,0.0004381,10]
[404521129,1770235837882,-8873698.4943133,0.0004381,10]
[404521140,1770235840624,-270.61786561,0.00012397,2]
[404521141,1770235840644,-482.62213439,0.00012397,2]
[404521142,1770235840654,-252.0,0.00012397,2]
[404521143,1770235840664,-165.37786561,0.00012422,2]
[404521144,1770235840678,-29.62213439,0.00012422,2]
[404521145,1770235840688,-231.89782395,0.00012447,2]
[404521146,1770235840701,-68.10217605,0.00012447,2]
[404521147,1770235840711,-250.0,0.00012498,2]
[404521148,1770235840724,-195.0,0.00012503,2]
[404521149,1770235840735,-300.0,0.00012575,2]
[404521150,1770235840744,-1610.15283811,0.00012591,2]
[404521151,1770235840755,-427.47627925,0.00012591,2]
[404521152,1770235840767,-1903.7200289,0.00012591,2]
[404521153,1770235840779,-2857.09268366,0.00012591,2]
[404521154,1770235840789,-300.0,0.00012598,2]
[404521155,1770235840799,-300.0,0.00012598,2]
[404521156,1770235840808,-13975.36962667,0.00012599,2]
[404521157,1770235840820,-435.81731983,0.00012599,2]
[404521158,1770235840830,-60.90274292,0.00012599,2]
[404521159,1770235841030,-437.70943335,0.0001259,2]
[404521160,1770235841042,-500.0,0.0001259,2]
[404521161,1770235841054,-796.24490861,0.0001259,2]
[404521162,1770235841067,-2302.14483546,0.0001259,2]
[404521163,1770235841080,-642.76071279,0.0001259,2]
[404521164,1770235841092,-3495321.14010979,0.0001259,2]
[404521165,1770235841102,-89.09725708,0.00012599,2]
[404521166,1770235841112,-2055.90601326,0.00012599,2]
[404521167,1770235841122,-2900.0,0.000126,4]
[404521168,1770235841132,-151.0,0.00012688,2]
[404521169,1770235841142,-500.0,0.0001269,2]
[404521170,1770235841154,-180.84284741,0.0001269,2]
[404521171,1770235841164,-242.98409149,0.0001269,2]
[404521172,1770235841174,-219.74990654,0.0001269,2]
[404521173,1770235841183,-338.58920765,0.0001269,2]
[404521174,1770235841192,-196.34070519,0.0001269,2]
[404521175,1770235841202,-500.0,0.0001269,2]
[404521176,1770235841214,-500.0,0.0001269,2]
[404521177,1770235841224,-500.0,0.0001269,2]
[404521178,1770235841234,-500.0,0.0001269,2]
[404521179,1770235841244,-500.0,0.0001269,2]
[404521180,1770235841254,-500.0,0.0001269,2]
[404521181,1770235841263,-500.0,0.0001269,2]
[404521182,1770235841273,-500.0,0.0001269,2]
[404521183,1770235841283,-500.0,0.0001269,2]
[404521184,1770235841292,-500.0,0.0001269,2]
[404521185,1770235841302,-500.0,0.0001269,2]
[404521186,1770235841312,-500.0,0.0001269,2]
[404521187,1770235841322,-500.0,0.0001269,2]
[404521188,1770235841332,-320.49437036,0.0001269,2]
[404521189,1770235841342,-500.0,0.0001269,2]
[404521190,1770235841352,-500.0,0.0001269,2]
[404521191,1770235841362,-500.0,0.0001269,2]
[404521192,1770235841372,-500.0,0.0001269,2]
[404521193,1770235841382,-500.0,0.0001269,2]
[404521194,1770235841392,-500.0,0.0001269,2]
[404521195,1770235841405,-500.0,0.0001269,2]
[404521196,1770235841416,-500.0,0.0001269,2]
[404521197,1770235841429,-500.0,0.0001269,2]
[404521198,1770235841441,-500.0,0.0001269,2]
[404521199,1770235841452,-500.0,0.0001269,2]
[404521200,1770235841463,-500.0,0.0001269,2]
[404521201,1770235841476,-500.0,0.0001269,2]
[404521202,1770235841486,-500.0,0.0001269,2]
[404521203,1770235841496,-500.0,0.0001269,2]
[404521204,1770235841509,-500.0,0.0001269,2]
[404521205,1770235841519,-500.0,0.0001269,2]
[404521206,1770235841530,-500.0,0.0001269,2]
[404521207,1770235841541,-500.0,0.0001269,2]
[404521208,1770235841552,-500.0,0.0001269,2]
[404521209,1770235841563,-500.0,0.0001269,2]
[404521210,1770235841574,-500.0,0.0001269,2]
[404521211,1770235841584,-500.0,0.0001269,2]
[404521212,1770235841595,-500.0,0.0001269,2]
[404521213,1770235841604,-500.0,0.0001269,2]
[404521214,1770235841615,-500.0,0.0001269,2]
[404521215,1770235841627,-500.0,0.0001269,2]
[404521216,1770235841637,-500.0,0.0001269,2]
[404521217,1770235841647,-400.00000001,0.0001269,2]
[404521218,1770235841656,-500.0,0.0001269,2]
[404521219,1770235841665,-500.0,0.0001269,2]
[404521220,1770235841674,-500.0,0.0001269,2]
[404521221,1770235841684,-500.0,0.0001269,2]
[404521222,1770235841693,-500.0,0.0001269,2]
[404521223,1770235841703,-500.0,0.0001269,2]
[404521224,1770235841712,-500.0,0.0001269,2]
[404521225,1770235841721,-500.0,0.0001269,2]
[404521226,1770235841731,-500.0,0.0001269,2]
[404521227,1770235841739,-500.0,0.0001269,2]
[404521228,1770235841749,-500.0,0.0001269,2]
[404521229,1770235841758,-5800.0,0.000127,4]
[404521230,1770235841767,-500.0,0.00012762,2]
[404521231,1770235841776,-1712.851,0.00012791,2]
[404521232,1770235841786,-157.18,0.00012791,2]
[404521233,1770235841805,-180.87,0.000128,2]
[404521234,1770235841816,-8800.0,0.000128,4]
[404521235,1770235842213,-166.66,0.00012862,2]
[404521236,1770235842227,-11700.0,0.000129,4]
[404521237,1770235842236,-10000.0,0.00012952,2]
[404521238,1770235842245,-2500.0,0.00012952,2]
[404521239,1770235842254,-190.51319598,0.00012956,2]
[404521240,1770235842263,-500.0,0.00013044,2]
[404521241,1770235842272,-200.0,0.00013044,2]
[404521242,1770235842282,-151.0,0.00013044,2]
[404521243,1770235842291,-151.0,0.00013044,2]
[404521244,1770235842301,-151.0,0.00013044,2]
[404521245,1770235842310,-151.0,0.00013044,2]
[404521246,1770235842319,-151.0,0.00013044,2]
[404521247,1770235842329,-151.0,0.00013044,2]
[404521248,1770235842339,-500.0,0.00013044,2]
[404521249,1770235842349,-151.0,0.00013044,2]
[404521250,1770235842359,-500.0,0.00013044,2]
[404521251,1770235842368,-151.0,0.00013044,2]
[404521252,1770235842378,-500.0,0.00013044,2]
[404521253,1770235842388,-151.0,0.00013044,2]
[404521254,1770235842398,-151.0,0.00013044,2]
[404521255,1770235842408,-219.284852,0.00013044,2]
[404521256,1770235842417,-200.0,0.00013044,2]
[404521257,1770235842430,-18487.88,0.00013136,2]
[404521258,1770235842440,-62461.34,0.00013152,2]
[404521259,1770235842450,-14411.18694647,0.00013188,2]
[404521260,1770235842459,-2055.90601323,0.00013188,2]
[404521261,1770235842471,-1852.42,0.00013205,2]
[404521262,1770235842480,-166.66,0.00013287,2]
[404521263,1770235842489,-1000.0,0.00013398,2]
[404521264,1770235842501,-3240.0,0.00013425,2]
[404521265,1770235842510,-500.0,0.00013592,2]
[404521266,1770235842519,-250.0,0.00013637,2]
[404521267,1770235842527,-300.0,0.00013637,2]
[404521268,1770235842537,-195.0,0.00013637,2]
[404521269,1770235842546,-255.0,0.00013695,2]
[404521270,1770235842555,-201.06578033,0.00013698,2]
[404521271,1770235842564,-500.0,0.00013698,2]
[404521272,1770235842574,-500.0,0.00013698,2]
[404521273,1770235842583,-276.48,0.00013698,2]
[404521274,1770235842591,-500.0,0.00013698,2]
[404521275,1770235842600,-500.0,0.00013698,2]
[404521276,1770235842610,-500.0,0.00013698,2]
[404521277,1770235842619,-500.0,0.00013698,2]
[404521278,1770235842629,-500.0,0.00013698,2]
[404521279,1770235842638,-508.81699603,0.00013698,2]
[404521280,1770235842647,-500.0,0.00013698,2]
[404521281,1770235842656,-500.0,0.00013698,2]
[404521282,1770235842666,-500.0,0.00013698,2]
[404521283,1770235842675,-500.0,0.00013698,2]
[404521284,1770235842687,-500.0,0.00013698,2]
[404521285,1770235842697,-534.84,0.00013698,2]
[404521286,1770235842707,-200.0,0.00013699,2]
[404521287,1770235842717,-166.66,0.00013711,2]
[404521288,1770235842727,-14411.18694647,0.00013777,2]
[404521289,1770235842736,-2055.90601323,0.00013777,2]
[404521290,1770235842745,-420.0,0.00013821,2]
[404521291,1770235842754,-1261.0,0.00013946,2]
[404521292,1770235842764,-829.0,0.00013974,2]
[404521293,1770235842773,-166.66,0.00014136,2]
[404521294,1770235842783,-6798.44182992,0.00014144,2]
[404521295,1770235842791,-4070.24,0.00014309,2]
[404521296,1770235842802,-14411.18694647,0.00014366,2]
[404521297,1770235842811,-2055.90601323,0.00014366,2]
[404521298,1770235842820,-166.66,0.00014561,2]
[404521299,1770235842831,-500.0,0.000146,2]
[404521300,1770235842841,-235.04432353,0.000146,2]
[404521301,1770235842851,-500.0,0.000146,2]
[404521302,1770235842861,-639.05832686,0.000146,2]
[404521303,1770235842872,-500.0,0.000146,2]
[404521304,1770235842883,-1533.8,0.00014793,2]
[404521305,1770235842892,-433.0,0.00014892,2]
[404521306,1770235842902,-14411.18694647,0.00014955,2]
[404521307,1770235842911,-2055.90601323,0.00014955,2]
[404521309,1770235842920,-166.66,0.00014985,2]
[404521310,1770235842929,-250.0,0.00015,2]
[404521311,1770235842938,-1000.0,0.00015148,2]
[404521313,1770235842947,-1000.0,0.00015148,2]
[404521315,1770235842956,-418.49460526,0.00015148,2]
[404521317,1770235842965,-587.0,0.00015164,2]
[404521319,1770235842975,-4339.89131554,0.0001525,2]
[404521321,1770235842985,-4875.22,0.0001531,2]
[404521323,1770235842994,-150.99,0.0001531,2]
[404521325,1770235843004,-9999.99,0.0001531,2]
[404521327,1770235843013,-150.39,0.00015353,2]
[404521329,1770235843022,-190.51319598,0.00015428,2]
[404521331,1770235843032,-14411.18694647,0.00015544,2]
[404521333,1770235843041,-2055.90601323,0.00015544,2]
[404521335,1770235843050,-2083.48052678,0.00015653,2]
[404521336,1770235843060,-5498.33807406,0.00015653,2]
[404521337,1770235843071,-9699.72010148,0.00015653,2]
[404521338,1770235843080,-1500.0,0.00015696,2]
[404521339,1770235843089,-1500.0,0.00015696,2]
[404521340,1770235843099,-6798.44182992,0.00015697,2]
[404521341,1770235843108,-7105.77,0.00016116,2]
[404521342,1770235843118,-14411.18694647,0.00016133,2]
[404521343,1770235843128,-2000.0,0.00016244,2]
[404521344,1770235843137,-2000.0,0.00016244,2]
[404521345,1770235843146,-800.755787,0.00016438,2]
[404521346,1770235843156,-481.28670728,0.00016451,2]
[404521347,1770235843168,-500.0,0.00016507,2]
[404521348,1770235843177,-500.0,0.00016507,2]
[404521349,1770235843188,-456.738324,0.00016537,2]
[404521350,1770235843197,-823.0,0.00016636,2]
[404521351,1770235843207,-1533.8,0.00016642,2]
[404521352,1770235843218,-165.75,0.00016712,2]
[404521353,1770235843229,-14411.18694647,0.00016722,2]
[404521354,1770235843238,-2500.0,0.00016792,2]
[404521355,1770235843247,-1826.91110422,0.00016792,2]
[404521356,1770235843257,-481.28670728,0.00016862,2]
[404521357,1770235843269,-150.39,0.00016889,2]
[404521358,1770235843279,-300.0,0.00017,2]
[404521359,1770235843288,-500.0,0.00017097,2]
[404521360,1770235843297,-1153.93461934,0.000171,2]
[404521361,1770235843306,-3286.1281269,0.000171,2]
[404521362,1770235843316,-5115.52230349,0.000171,2]
[404521363,1770235843325,-6798.44182992,0.0001725,2]
[404521364,1770235843334,-481.28670728,0.00017273,2]
[404521365,1770235843344,-14411.18694647,0.00017311,2]
[404521366,1770235843354,-3000.0,0.0001734,2]
[404521367,1770235843364,-14600.0,0.000175,6]
[404521368,1770235843374,-2900.0,0.000176,6]
[404521369,1770235843383,-14510.20116966,0.00017653,2]
[404521370,1770235843392,-19632.8088,0.00017653,2]
[404521371,1770235843401,-481.28670728,0.00017685,2]
[404521372,1770235843411,-2900.0,0.000177,6]
[404521373,1770235843421,-2900.0,0.000178,6]
[404521374,1770235843433,-3500.0,0.00017888,2]
[404521375,1770235843442,-5093.8226,0.000179,2]
[404521376,1770235843452,-5000.0,0.000179,2]
[404521377,1770235843462,-190.51319598,0.000179,2]
[404521378,1770235843474,-2900.0,0.000179,6]
[404521379,1770235843483,-14411.18694647,0.000179,2]
[404521380,1770235843492,-4339.89131554,0.000179,2]
[404521381,1770235843502,-253.0,0.00017952,2]
[404521382,1770235843510,-500.0,0.00017959,3]
[404521383,1770235843520,-500.0,0.00017973,2]
[404521384,1770235843529,-500.0,0.00017973,2]
[404521385,1770235843538,-500.0,0.00017973,2]
[404521386,1770235843547,-293.82457575,0.00017973,2]
[404521387,1770235843557,-500.0,0.00017973,2]
[404521388,1770235843567,-500.0,0.00017973,2]
[404521389,1770235843576,-500.0,0.00017973,2]
[404521390,1770235843586,-500.0,0.00017973,2]
[404521391,1770235843597,-500.0,0.00017973,2]
[404521392,1770235843607,-500.0,0.00017973,2]